Cogmind - Beta 15 @@@ ROGUE MODE // 2025.06.04 @ 09:08:35 Player: 7604 Result: Destroyed self with Subdweller Shrapnel Launcher Performance ------------- Evolutions (0) 0 Regions Visited (3) 600 Robots Destroyed (35) 175 Value Destroyed (928) 928 Prototype IDs (15) 300 Alien Tech Used (0) 0 Bonus (2000) 2000 TOTAL SCORE: 4003 Bonus ------- Delivered SUBCON Basin 2000 Cogmind --------- Core Integrity 0/250 Matter 223/300 Energy 80/100 System Corruption 0% Temperature Cool (11) Movement Treading (480) Ox4 Location -7/Recycling Parts ------- > --- POWER (1) -------- (None) > --- PROPULSION (2) --- Light Treads > --- UTILITY (2) ------ Huge Storage Unit Hardened Medium Armor Plating > --- WEAPON (2) ------- Subdweller Machine Gun Subdweller Shrapnel Launcher > --- INVENTORY (25) --- Structural Scanner Seismic Detector Hardened Medium Armor Plating Hardened Medium Armor Plating Makeshift Thermal Plating Scrap Shield Tech Extrapolator Subdweller Laser Subdweller Laser Powered Cannon Subdweller Machine Gun Peak State ------------ > --- POWER ------------ Ion Engine > --- PROPULSION ------- Light Treads Light Treads > --- UTILITY ---------- Huge Storage Unit Seismic Detector > --- WEAPON ----------- Subdweller Laser Subdweller Laser > --- INVENTORY -------- Light Treads Structural Scanner Makeshift Thermal Plating Scrap Shield Powered Cannon Subdweller Machine Gun Subdweller Machine Gun Subdweller Shrapnel Launcher SUBCON Basin [Rating: 30] Favorites ----------- Power Ion Engine Engine Ion Engine Propulsion Light Treads Treads Light Treads Leg Aluminum Leg Utility Huge Storage Unit Device Seismic Detector Storage Huge Storage Unit Protection Layered Light Armor Plating Weapon Heavy Assault Rifle Energy Gun Subdweller Laser Ballistic Gun Heavy Assault Rifle Launcher Subdweller Shrapnel Launcher Special Weapon Mining Laser Slashing Weapon Greatsword Build | -11 -10 -10 -7 ------- Run | Yrd Mat Sub Rec Slots Evolved . | . . . . Power . | . . . . Propulsion . | . . . . Utility . | . . . . Weapon . | . . . . Parts Attached 31 | 2 9 14 6 Power 1 | . . 1 . Engine 1 | . . 1 . Core . | . . . . Reactor . | . . . . Propulsion 4 | . 2 1 1 Treads 4 | . 2 1 1 Leg . | . . . . Wheel . | . . . . Hover . | . . . . Flight . | . . . . Utility 10 | 1 3 3 3 Device 4 | 1 1 2 . Storage 2 | . 2 . . Processor . | . . . . Hackware . | . . . . Protection 4 | . . 1 3 Artifact . | . . . . Weapon 16 | 1 4 9 2 Energy Gun 5 | 1 1 3 . Energy Cannon . | . . . . Ballistic Gun 7 | . 2 4 1 Ballistic Cannon . | . . . . Launcher 2 | . . 2 . Special Weapon 1 | . 1 . . Impact Weapon . | . . . . Slashing Weapon 1 | . . . 1 Piercing Weapon . | . . . . Special Melee Weapon . | . . . . Unidentified Prototypes . | . . . . Parts Lost 9 | . . 3 6 Power 2 | . . 1 1 Propulsion 3 | . . 1 2 Utility 3 | . . 1 2 Weapon 1 | . . . 1 Highest Loss Streak 5 | . . 3 5 To Critical Strikes . | . . . . Average Backups 19 | 6 16 22 10 Power 1 | 1 1 1 . Propulsion 1 | 3 1 1 . Utility 6 | . 5 7 5 Weapon 10 | 1 7 12 4 Tool/Special . | . . . . Unused Backups 24 | 7 . 12 5 Power 3 | 1 . 2 . Propulsion 4 | 4 . . . Utility 10 | 1 . 5 4 Weapon 7 | 1 . 5 1 Tool/Special . | . . . . Average Slot Usage (%) 99 | . 99 99 98 Engine 13 | . 14 13 13 Treads 27 | . 24 27 27 Device 13 | . 14 13 10 Storage 14 | . 14 14 14 Energy Gun 10 | . 4 10 22 Ballistic Gun 14 | . 23 13 3 Special Weapon 1 | . . 2 . Peak Build Rating 30 | 7 14 30 30 Average Rating 14 | 6 10 14 19 On Entrance 13 | 6 7 12 30 Naked Turns . | . . . . Heaviest Build 105 | 14 92 105 98 Greatest Support 40 | 20 40 40 40 Greatest Overweight (x) 4 | . 4 2 4 Average Overweight (x) 1 | . 1 2 2 Largest Inventory Capacity 25 | 8 25 25 25 Average Capacity 24 | 8 23 25 25 Most Carried 25 | 8 22 25 25 Average Carried 21 | 6 16 24 16 Final Capacity 25 | 8 25 25 25 Final Carried 25 | 6 22 25 13 Class Distribution -------------------- 100% | Mutant Dominant Class ---------------- Mutant | -10/Materials Mutant | -10/Subcaves Mutant | -7/Recycling Resources | -11 -10 -10 -7 ----------- Run | Yrd Mat Sub Rec Matter Collected 1458 | 238 419 623 178 Remotely . | . . . . Salvage Created 1238 | 110 609 411 108 Parts 78 | 9 38 27 4 Haulers Intercepted 2 | . 2 . . Recyclers Shooed 6 | . 2 . 4 Parts Field Recycled . | . . . . Retrieved Matter . | . . . . Parts Self-Destructed 10 | . . 10 . Prevented . | . . . . Kills | -11 -10 -10 -7 ------- Run | Yrd Mat Sub Rec Combat Hostiles Destroyed 20 | . 12 7 1 Guns 18 | . 12 5 1 AOE 2 | . . 2 . Classes Destroyed 13 | 2 6 4 1 Worker 1 | . 1 . . Tunneler 3 | 3 . . . Hauler 2 | . 2 . . Recycler 2 | 1 . . 1 Operator 2 | . 2 . . Turret 2 | . . 2 . Watcher 3 | . 3 . . Swarmer 2 | . 2 . . Grunt 10 | . 10 . . Sentry 1 | . . . 1 Artisan 2 | . . 2 . Cobbler 1 | . . 1 . Subdweller 7 | . . 7 . Best Kill Streak 4 | 2 3 4 1 Combat Bots Only 3 | . 3 2 1 Max Kills in Single Turn 2 | 1 1 2 1 Gunslinging . | . . . . Exploded 2 | . . 2 . Melee . | . . . . Uniques/NPCs Destroyed . | . . . . Combat | -11 -10 -10 -7 -------- Run | Yrd Mat Sub Rec Hostile Shots Fired 261 | . 57 51 153 Missed 76 | . 13 22 41 Hits 185 | . 44 29 112 Projectile 185 | . 44 29 112 Critical Strikes 1 | . 1 . . Damage Taken 1844 | . 548 428 868 Core 250 | . 100 14 136 Absorbed by Shields . | . . . . Ignored by Resistances 14 | . . 14 . Regen/Repaired (Parts) 123 | . 123 . . Core Remaining (%) 100 | 100 . . . Volleys Fired 234 | 18 66 130 20 Largest 2 | 2 2 2 2 Hottest 125 | 70 100 125 120 Shots Fired 365 | 36 131 174 24 Gun 307 | 36 130 118 23 Cannon . | . . . . Launcher 9 | . . 8 1 Special 49 | . 1 48 . Kinetic 192 | 18 96 59 19 Thermal 173 | 18 35 115 5 Explosive . | . . . . Electromagnetic . | . . . . Robot Hit Streak 18 | 6 9 18 10 Robot Miss Streak 4 | 3 4 1 2 Penetration Max . | . . . . Secondary Targets 2 | . 2 . . Max Gunslinging Chain 1 | . 1 . . Shots Hit Robots 188 | 22 81 65 20 Core Hits 76 | 9 32 28 7 Critical Kills . | . . . . Critical Parts Destroyed . | . . . . Critical Strikes 3 | 1 2 . . Burn 3 | 1 2 . . Melee Attacks 1 | . . . 1 Impact . | . . . . Slashing 1 | . . . 1 Piercing . | . . . . Sneak Attacks 1 | . . . 1 Combat Hostiles . | . . . . Follow-up Attacks . | . . . . Damage Inflicted 3332 | 219 1062 1501 550 Guns 2629 | 219 1020 985 405 Cannons . | . . . . Explosions 551 | . . 516 35 Melee 101 | . . . 101 Ramming 51 | . 42 . 9 Kinetic 2350 | 107 755 1111 377 Thermal 830 | 112 265 390 63 Explosive . | . . . . Electromagnetic . | . . . . Impact . | . . . . Slashing 101 | . . . 101 Piercing . | . . . . Highest Corruption . | . . . . Average Corruption . | . . . . Corruption Purged . | . . . . Corruption Blocked . | . . . . Overload Shots . | . . . . Overflow Damage 34 | . . 34 . Projectiles . | . . . . Explosions 34 | . . 34 . Melee . | . . . . Knockbacks 1 | . 1 . . Impact 1 | . 1 . . Kinetic . | . . . . Secondary . | . . . . Self-Inflicted Damage 68 | . . 58 10 Shots 2 | . . 1 1 Rammed 7 | . 5 . 2 Targets Rammed 8 | . 5 . 3 Kicked . | . . . . Crushed 1 | . . . 1 Highest Temperature 264 | 120 238 45 264 Average Temperature 64 | 41 67 14 105 Received Heat Transfer 600 | . 252 78 270 Siege Activations . | . . . . Martial Activations . | . . . . Shielding Activations . | . . . . Robots Disrupted . | . . . . Combat Hostiles . | . . . . Robots Corrupted . | . . . . Combat Hostiles . | . . . . Parts Fried . | . . . . Impact Corruptions . | . . . . Robots Melted . | . . . . Combat Hostiles . | . . . . Parts Melted 3 | . . 3 . Heat Transferred 2052 | 407 925 645 75 Parts Sabotaged . | . . . . Parts Stolen . | . . . . Parts Stripped . | . . . . Power Chain Reactions . | . . . . Alert | -11 -10 -10 -7 ------- Run | Yrd Mat Sub Rec Maximum Alert Level . | . . . . Low Security (%) 100 | 100 100 . 100 Level 1 . | . . . . Level 2 . | . . . . Level 3 . | . . . . Level 4 . | . . . . Level 5 . | . . . . High Security . | . . . . Max Security . | . . . . Peak Influence 77 | 10 77 . 45 Initial 13 | . . . 13 Average 12 | 1 17 . 3 Influence Increases 647 | 20 411 100 116 Destroy 0b10 Robot/C 300 | . 240 40 20 Destroy 0b10 Robot/NC 65 | 20 40 . 5 Destroy Leader 60 | . 60 . . Successful Hack 13 | . 9 . 4 Select Force Hacks 90 | . 60 . 30 Disable Machine 45 | . . . 45 Destroy Structure 14 | . 2 . 12 Lose Combat Pursuer 60 | . . 60 . Influence Decreases 605 | 20 411 71 103 Entered New Map 16 | . . . 16 Time Decay 559 | 20 411 41 87 Lost Part 30 | . . 30 . Squads Dispatched 4 | . 4 . . Investigation 2 | . 2 . . Extermination . | . . . . Reinforcement 2 | . 2 . . Assault . | . . . . Garrison . | . . . . Intercept . | . . . . Searches Triggered . | . . . . Construction Impeded . | . . . . Haulers Reinforced . | . . . . Active Scanning Responses . | . . . . Cargo Convoy Interrupts . | . . . . Stealth | -11 -10 -10 -7 --------- Run | Yrd Mat Sub Rec Distress Signals 3 | . 3 . . Communications Jammed . | . . . . Distress Signals . | . . . . Times Spotted 46 | . 31 13 2 Peak Tracking Total 5 | . 5 2 1 Tactical Retreats 2 | . . 2 . Traps | -11 -10 -10 -7 ------- Run | Yrd Mat Sub Rec Traps Triggered 2 | . 2 . . Indirectly . | . . . . Trap Hack Attempts . | . . . . Triggered . | . . . . Disarmed . | . . . . Reprogrammed . | . . . . Reused . | . . . . Traps Extracted . | . . . . Installed . | . . . . Triggered . | . . . . Machines | -11 -10 -10 -7 ---------- Run | Yrd Mat Sub Rec Machines Disabled 7 | . . 4 3 Max in Single Turn 3 | . . 3 2 Machines Repaired . | . . . . Machines Dismantled . | . . . . Machines Sabotaged . | . . . . Overloaded Fab Kills . | . . . . Hacking | -11 -10 -10 -7 --------- Run | Yrd Mat Sub Rec Machines Accessed 19 | . 9 4 6 Terminals 9 | . 6 . 3 Fabricators . | . . . . Repair Stations 1 | . 1 . . Recycling Units 4 | . 2 . 2 Scanalyzers . | . . . . Garrison Access . | . . . . Total Hacks 46 | . 24 8 14 Successful 33 | . 17 8 8 Failed 13 | . 7 . 6 Catastrophic . | . . . . Database Lockouts . | . . . . Manual 22 | . 14 . 8 Terminals 27 | . 17 . 10 Fabricators . | . . . . Repair Stations 3 | . 3 . . Recycling Units 7 | . 4 . 3 Scanalyzers . | . . . . Garrison Access . | . . . . Terminal Hacks 15 | . 4 8 3 Record 7 | . 1 5 1 Robot Analysis 2 | . 2 . . Prototype ID Bank 2 | . 1 . 1 Open Door 1 | . . 1 . Zone Layout 1 | . . . 1 Proto ID Catalog 1 | . . 1 . Release Object 1 | . . 1 . Fabricator Hacks . | . . . . Repair Station Hacks 2 | . 2 . . Scan Component 1 | . 1 . . Repair 1 | . 1 . . Recycling Unit Hacks 4 | . 2 . 2 Retrieve Components 4 | . 2 . 2 Scanalyzer . | . . . . Garrison Access Hacks . | . . . . Unauthorized Hacks 12 | . 9 . 3 Terminals 9 | . 7 . 2 Botnet 3 | . 1 . 2 Operators 1 | . 1 . . Skim 5 | . 5 . . Fabricators . | . . . . Repair Stations . | . . . . Recycling Units 3 | . 2 . 1 Tunnel 3 | . 2 . 1 Scanalyzers . | . . . . Garrison Access . | . . . . Data Cores Recovered . | . . . . Used . | . . . . Hacking Detections 10 | . 7 . 3 Full Trace Events 2 | . . . 2 Feedback Events . | . . . . Feedback Blocked . | . . . . Robot Schematics Acquired . | . . . . Robots Built . | . . . . Authchips . | . . . . Time . | . . . . Total Robot Build Rating . | . . . . Part Schematics Acquired . | . . . . Parts Built . | . . . . Authchips . | . . . . Time . | . . . . Total Part Build Rating . | . . . . Parts Repaired 1 | . 1 . . Time 26 | . 26 . . Parts Recycled . | . . . . Recycled Matter . | . . . . Retrieved Matter . | . . . . Retrieved Components 24 | . 19 . 5 Parts Scanalyzed . | . . . . Part Schematics Acquired . | . . . . Parts Damaged . | . . . . Bothacking | -11 -10 -10 -7 ------------ Run | Yrd Mat Sub Rec Used RIF Installer . | . . . . Robots Hacked . | . . . . Non-combat . | . . . . Combat . | . . . . Robot Hacks Applied . | . . . . Relay Couplers Released . | . . . . Fabnet Peak Effective % . | . . . . Robots Rewired . | . . . . Allies Hacked . | . . . . Hacks Repelled . | . . . . Allies | -11 -10 -10 -7 -------- Run | Yrd Mat Sub Rec Total Allies . | . . . . Largest Group . | . . . . Highest-Rated Group . | . . . . Highest-Rated Ally . | . . . . Total Orders . | . . . . Ally Attacks . | . . . . Total Damage . | . . . . Kills . | . . . . Allies Corrupted . | . . . . Allies Melted . | . . . . Intel | -11 -10 -10 -7 ------- Run | Yrd Mat Sub Rec Active Infowar (turns) 9089 | 25 2264 5876 924 Terrain 925 | . 182 743 . Structural 625 | . . 625 . Seismic 7539 | 25 2082 4508 924 Robot Analysis Total 2 | . 2 . . Derelict Logs Recovered 2 | . . 2 . Drone Launches . | . . . . Drone Recoveries . | . . . . Exploration | -11 -10 -10 -7 ------------- Run | Yrd Mat Sub Rec Turns Passed 9721 | 166 2264 6092 1199 Spaces Moved 2567 | 65 672 1481 349 Core . | . . . . Treads 2380 | . 550 1481 349 Legs 187 | 65 122 . . Wheels . | . . . . Hover . | . . . . Flight . | . . . . Fastest Speed 120 | 120 120 320 320 Average Speed 305 | 120 285 320 320 Slowest Speed 480 | 120 480 320 480 Overloaded Moves . | . . . . Propulsion Burnouts . | . . . . Robots Hopped . | . . . . Potential Cave-ins . | . . . . Cave-ins Triggered . | . . . . Exploration Rate (%) 60 | 6 99 52 83 Regions Visited 3 Branch Regions 2 Pre-discovered Areas 5 | . 2 2 1 Known Exits Taken 1 | . . 1 . Unknown Exits Taken 2 | 1 1 . . Scrap Searched 5 | . . 5 . Spaces Dug 30 | . 1 13 16 Terrain Destroyed 133 | . 1 116 16 Melee . | . . . . Projectile 14 | . 1 13 . AOE 119 | . . 103 16 Terrain Rammed . | . . . . Walls Destroyed . | . . . . Machines Disabled . | . . . . Actions | -11 -10 -10 -7 --------- Run | Yrd Mat Sub Rec Total 3945 | 121 872 2557 395 Wait 989 | 32 92 864 1 Move 2564 | 64 671 1480 349 Hop . | . . . . Pick Up 37 | 3 16 11 7 Fast Attach 5 | . 1 3 1 Attach 10 | 1 . 4 5 Detach 3 | . . 1 2 Swap 64 | 1 19 40 4 Drop 30 | 2 2 24 2 Fire 234 | 18 66 130 20 Melee 1 | . . . 1 Ram . | . . . . Kick . | . . . . Crush 8 | . 5 . 3 Escape Stasis . | . . . . Rewire . | . . . . Trap . | . . . . Miscellaneous . | . . . . Route ------- -11/Scrapyard -10/Materials (discovered 5 exits: *Mat x3 / [*Min] / *Sub) -10/Subcaves (discovered 3 exits: *Mat x2 / *Rec) -7/Recycling History --------- Turn | Location | Event 3 | -11/Scrapyard | Discovered new exit (range 3) 167 | -11/Scrapyard | Entered Materials 314 | -10/Materials | Build established: Mutant 378 | -10/Materials | Discovered new exit (range 15) 658 | -10/Materials | Discovered new exit (range 11) 767 | -10/Materials | Derelicts attacked the area 911 | -10/Materials | Discovered new exit (range 16) 1568 | -10/Materials | Repaired Lgt. Treads 1655 | -10/Materials | Discovered new exit (range 7) 1856 | -10/Materials | Learned Storage security intel 1919 | -10/Materials | Learned 2 Storage zone layouts 1970 | -10/Materials | Learned Storage terminal intel 2013 | -10/Materials | Identified exit to Materials 2047 | -10/Materials | Learned 4 Subcaves zone layouts 2089 | -10/Materials | Learned Storage garrison access intel 2116 | -10/Materials | Learned location of 2 exits from Materials 2203 | -10/Materials | Learned Storage emergency access door positions 2431 | -10/Materials | Entered Subcaves 2432 | -10/Subcaves | Identified exit to Recycling 2433 | -10/Subcaves | Identified exit to Materials 2504 | -10/Subcaves | Shifting Twisted Machinery released Sub. Shrapnel Launcher 2682 | -10/Subcaves | Shifting Twisted Machinery released Mak. Thermal Plating 3320 | -10/Subcaves | Visited Clippyterm 3329 | -10/Subcaves | Learned Factory garrison access intel 3622 | -10/Subcaves | Discovered exit to Materials (range 13) 3650 | -10/Subcaves | Shifting Twisted Machinery released Sub. Shrapnel Launcher 3668 | -10/Subcaves | Shifting Twisted Machinery released Battle Cannon 4889 | -10/Subcaves | A swath of the cavern ceiling suddenly collapsed 5252 | -10/Subcaves | A swath of the cavern ceiling suddenly collapsed 5260 | -10/Subcaves | Ambushed by angry Subdweller bent on revenge 6032 | -10/Subcaves | Ambushed by Subdweller buried in earth 6032 | -10/Subcaves | Ambushed by Subdweller buried in earth 6060 | -10/Subcaves | Lost 3 parts (1p1n1u) 6757 | -10/Subcaves | Learned location of Storage (-7) 7145 | -10/Subcaves | Visited 4L-MR0's lab 7183 | -10/Subcaves | Found Powered Cannon 7876 | -10/Subcaves | Shifting Twisted Machinery released Sub. Laser 7879 | -10/Subcaves | Shifting Twisted Machinery released Mak. Flight Unit 8060 | -10/Subcaves | Learned location of Zion (-7) 8122 | -10/Subcaves | Found SUBCON Basin 8523 | -10/Subcaves | Entered Recycling 8812 | -7/Recycling | Scanned before Scraplab entrance 8857 | -7/Recycling | Entered Scraplab 9474 | -7/Recycling | Core integrity fell below 50% 9704 | -7/Recycling | Core integrity fell below 20% 9722 | -7/Recycling | Destroyed self with Subdweller Shrapnel Launcher Last Messages --------------- 09468_ Y-54 Guardian springs to life. 09468_ Sub. Laser shoots sparks and powers down. 09482_ Lgt. Treads destroyed. 09484_ Y-54 Guardian destroyed. 09485_ R-06 Scavenger collects Imp. Deuterium Engine. 09490_ Acquired 61 matter. 09493_ R-06 Scavenger collects Flak Gun. 09497_ R-06 Scavenger collects Imp. Light Armor Plating. 09590_ Acquired 70 matter. 09616_ Acquired Greatsword. 09650_ Sneak attack on R-06 Scavenger. 09677_ Y-54 Guardian springs to life. 09690_ Lyr. Light Armor Plating destroyed. 09693_ Greatsword destroyed. 09700_ Sub. Machine Gun shoots sparks and powers down. 09703_ Lgt. Treads destroyed. 09706_ Ion Engine destroyed. 09712_ Hrd. Medium Armor Plating destroyed. 09722_ Recycling Unit disabled. 09722_ Force Booster tumbles out of recycling unit. Map ----- +----------------------------------------------------+ | ?# #???# # #?????????????????????? | | ?# #???# # #?????????????????????? | | ?# #???# #########?+???????????????????? | | ?# #???# #???????? #???????????????????? | | ####+########### ######### #???????????????????? | | #???????????????????? | | +???????????????????? | | #???????????????????? | | #######+####### ####### ####???????????????????? | | ?# # #?????# #??????????????????????? | | ?# #####?????#r#??????????????????????? | | ?# #?######### #??????????????????????? | | ?# #?#! + ##############?????????? | | ?# #?#! # # #?????????? | | ?# #?#% # # #?????????? | | ?# """ #?#! # u# #?????????? | | ?# """ #?# % # # #?????????? | | ?# """ #?# # # #?????????? | | ?# """ #?# ! # # #?????????? | | ?# """ "T" #?# + + #?????????? | | ?# """ #?# ! # # #?????????? | | ?##############?# # # #?????????? | | ????????????????# ] ; # #????????? | | ????????????????#!!* # # ##????????? | | ????????????????# / # # #?????????? | | ????????????????####### @########## ###?????????? | | ??????????????????????# #??????????#???????????? | | ?????????????????????;; Y;??????????????????????? | | ??????????????????? ?????????????????????? | | ????????????????? ????????????????????? | | ??????????????? ???????????????????? | | ??????????????#####" !;;;;;# #??????????????????? | | ??????????????????#"""; ####??????????????????? | | ??????????????????##########?????????????????????? | | ?????????????????????????????????????????????????? | | ?????????????????????????????????????????????????? | | ?????????????????????????????????????????????????? | | | | | | | | | | | | | | | | | | | | | | | | | | | +----------------------------------------------------+ Best States ------------- Heat Dissipation 25 Energy Generation 10 Energy Capacity 250 Matter Stores 300 Matter Capacity 300 Sight Range 16 Terrain Scan Range 16 Terrain Scan Density 10 Armor Coverage 225 Resistance: TH 10 Evasion (%) 55 Recoil Reduction 2 Item Schematics ----------------- None Robot Schematics ------------------ None Fabricated ------------ Nothing Repaired ---------- Lgt. Treads | 12% | -10/Materials Alien Tech Used ----------------- None Achievements -------------- None Challenges ------------ None Game ------ Seed ShadeAccelerationScrap Manual? 0 Play Time 00:35:23 Cumulative 419.2 hours Start 2025.06.04 @ 08:33:23 End 2025.06.04 @ 09:08:35 Sessions 1 Manual Loads 0 Difficulty Rogue Special Mode None Game No. 208 Rogue 145 Adventurer 63 Explorer 0 Win Type - Total 9 Types 8/0/0/1/0/0/0/0/0/0 Lore% 86 Gallery% 78 Achievement% 66 Wizard Run 0 Options --------- Layout 0 ASCII 0 Keyboard 1 Movement Numpad Keybinds 0 Fullscreen 1 Font 18/Terminus Map View 76x50 Zoom Use 2% Tactical HUD 1 Map Filters NONE Filters NONE Steam 1 RUN: 6e137a22-0bff-473e-8a12-565a1429102d